bitfinex/quotes_BTCUSD_20241206
["timestamp","ask_amount","ask_price","bid_price","bid_amount"]
[1733496791949,0.351025,99490.0,99471.0,0.04023767]
[1733496792154,0.201039,99483.0,99472.0,0.10503154]
[1733496792360,0.1508648,99490.0,99471.0,0.04023767]
[1733496792578,0.201054,99476.0,99469.0,0.07567272]
[1733496792812,0.201054,99476.0,99469.0,0.00017272]
[1733496793029,0.201025,99470.0,99469.0,0.00017272]
[1733496793244,0.374025,99470.0,99469.0,0.00017272]
[1733496793466,0.47905654,99470.0,99469.0,0.00092448]
[1733496793944,0.173,99459.0,99439.0,0.02053576]
[1733496794210,0.201126,99440.0,99439.0,0.02053576]
[1733496794909,0.392253,99440.0,99432.0,0.0793]
[1733496795127,0.20114,99433.0,99432.0,0.0793]
[1733496795588,0.023,99431.0,99415.0,0.0759]
[1733496795798,0.023,99431.0,99399.0,0.13809953]
[1733496795799,0.201186,99411.0,99410.0,0.01971328]
[1733496796013,0.201198,99405.0,99402.0,0.00057609]
[1733496797067,0.201198,99405.0,99404.0,0.02011346]
[1733496797280,0.12803154,99431.0,99402.0,0.00057609]
[1733496797281,0.201191,99408.0,99402.0,0.00057609]
[1733496797490,0.12803154,99431.0,99402.0,0.00057609]
[1733496797491,0.201194,99407.0,99402.0,0.00057609]
[1733496797706,0.402388,99407.0,99402.0,0.0109537]
[1733496797942,0.201194,99407.0,99402.0,0.0109537]
[1733496798149,0.201194,99407.0,99402.0,0.0089537]
[1733496798358,0.201194,99407.0,99404.0,0.004]
[1733496798570,0.201187,99410.0,99402.0,0.0099537]
[1733496798778,0.201184,99412.0,99402.0,0.00157609]
[1733496798988,0.023,99410.0,99402.0,0.00457609]
[1733496799202,0.15,99429.0,99402.0,0.00157609]
[1733496799203,0.201196,99406.0,99402.0,0.00157609]
[1733496799417,0.402392,99406.0,99402.0,0.00157609]
[1733496799641,0.402392,99406.0,99404.0,0.003]
[1733496799871,0.023,99405.0,99404.0,0.003]
[1733496800292,0.173,99405.0,99404.0,0.003]
[1733496800734,0.27803154,99405.0,99404.0,0.003]
[1733496800946,0.173,99403.0,99402.0,0.00257609]
[1733496801162,0.27803154,99403.0,99402.0,0.00357609]
[1733496801367,0.27803154,99403.0,99402.0,0.00257609]
[1733496801581,0.3672145,99403.0,99402.0,0.00257609]
[1733496801867,0.3672145,99403.0,99402.0,9e-08]
[1733496801868,0.57803154,99403.0,99402.0,9e-08]
[1733496802065,0.374225,99391.0,99390.0,0.0017296]
[1733496802271,0.47925654,99391.0,99390.0,0.00190232]
[1733496802895,0.52925654,99391.0,99390.0,0.00190232]
[1733496803771,0.47925654,99391.0,99390.0,0.00190232]
[1733496803982,0.52925654,99391.0,99390.0,3.2e-07]
[1733496804253,0.651263,99372.0,99371.0,0.419492]
[1733496804740,0.651263,99372.0,99371.0,0.18290194]
[1733496804741,0.82929454,99372.0,99371.0,0.18290194]
[1733496804742,0.501286,99361.0,99360.0,0.0017304]
[1733496804953,0.501286,99361.0,99340.0,0.0017304]
[1733496804954,0.351326,99341.0,99340.0,0.0017304]
[1733496805159,0.47935754,99341.0,99340.0,0.0017304]
[1733496805587,0.47935754,99341.0,99340.0,0.00190333]
[1733496806245,0.47935754,99341.0,99340.0,3.3e-07]
[1733496806467,0.47935754,99341.0,99271.0,0.05]
[1733496806468,0.023,99299.0,99286.0,0.0457]
[1733496806688,0.023,99292.0,99286.0,0.0457]
[1733496807153,0.224428,99291.0,99283.0,0.0807]
[1733496808026,0.374428,99291.0,99290.0,0.0087312]
[1733496808266,0.374428,99291.0,99290.0,0.0127312]
[1733496808267,0.224428,99291.0,99290.0,0.0127312]
[1733496808555,0.224428,99291.0,99290.0,0.00630833]
[1733496808766,0.229428,99291.0,99290.0,0.00630833]
[1733496808966,0.224428,99291.0,99290.0,0.00630833]
[1733496809177,0.00975857,99291.0,99290.0,0.00630833]
[1733496809595,0.201424,99294.0,99290.0,0.00630833]
[1733496809804,0.173,99291.0,99290.0,0.00630833]
[1733496810013,0.173,99291.0,99290.0,0.00230833]
[1733496810438,0.174,99291.0,99290.0,0.00230833]
[1733496811337,0.00302462,99313.0,99291.0,0.0468]
[1733496811544,0.201402,99304.0,99292.0,0.00100698]
[1733496811752,0.2014,99305.0,99291.0,0.0468]
[1733496811982,0.17462684,99320.0,99291.0,0.0468]
[1733496812201,0.2014,99305.0,99291.0,0.04780699]
[1733496812433,0.2014,99305.0,99291.0,0.0468]
[1733496812657,0.20141,99300.0,99291.0,0.0478]
[1733496812864,0.20141,99300.0,99291.0,0.0468]
[1733496813297,0.20141,99300.0,99290.0,0.08540833]
[1733496813298,0.023,99293.0,99290.0,0.08540833]
[1733496813516,0.023,99291.0,99290.0,0.00230833]
[1733496814395,0.063327,99291.0,99290.0,0.00230833]
[1733496814626,0.201414,99298.0,99290.0,0.00230833]
[1733496814849,0.201402,99304.0,99290.0,0.00230833]
[1733496815137,0.040321,99313.0,99292.0,0.201426]
[1733496815387,0.20134,99335.0,99293.0,0.03127729]
[1733496815388,0.0101806,99314.0,99293.0,0.03127729]
[1733496815641,0.003,99291.0,99290.0,0.00430833]
[1733496815853,0.201391,99309.0,99290.0,0.00430833]
[1733496816062,0.000867,99310.0,99290.0,0.00430833]
[1733496816273,0.201407,99302.0,99290.0,0.00430833]
[1733496816704,0.201415,99298.0,99290.0,0.00230833]
[1733496816910,0.201391,99309.0,99290.0,0.00230833]
[1733496816911,0.201424,99293.0,99290.0,0.00230833]
[1733496817120,0.402849,99293.0,99290.0,0.00230833]
[1733496817541,0.402849,99293.0,99290.0,0.00330833]
[1733496817767,0.201428,99291.0,99290.0,0.00330833]
[1733496817973,0.32945954,99291.0,99290.0,0.00230833]
[1733496818202,0.32945954,99291.0,99290.0,0.00330833]
[1733496818416,0.47945954,99291.0,99290.0,0.00230833]
[1733496819490,0.47945954,99291.0,99290.0,0.00430833]
[1733496819696,0.72945954,99291.0,99290.0,0.00430833]
[1733496820172,0.77945954,99291.0,99290.0,0.00430833]
[1733496820588,0.77945954,99291.0,99270.0,0.0017304]
[1733496820589,0.224468,99271.0,99270.0,0.0017304]
[1733496820793,0.32949954,99271.0,99270.0,0.00190342]
[1733496821692,0.47949954,99271.0,99270.0,0.00190342]
[1733496822283,0.47949954,99271.0,99270.0,0.00390342]
[1733496822489,0.47949954,99271.0,99270.0,0.00290342]
[1733496823317,0.48729898,99271.0,99270.0,0.00290342]
[1733496823679,0.48729898,99271.0,99270.0,0.00190342]
[1733496823879,0.58932098,99271.0,99270.0,0.00190342]
[1733496824118,0.48829898,99271.0,99270.0,0.00190342]
[1733496824524,0.49129898,99271.0,99270.0,0.00190342]
[1733496824735,0.49229898,99271.0,99270.0,0.00190342]
[1733496825588,0.54229898,99271.0,99270.0,0.00190342]
[1733496826919,0.49229898,99271.0,99270.0,0.00190342]
[1733496827140,0.21426744,99271.0,99270.0,0.00190342]
[1733496827565,0.201464,99273.0,99270.0,0.00190342]
[1733496827801,0.201468,99271.0,99270.0,0.00190342]
[1733496828440,0.355468,99271.0,99270.0,0.00190342]
[1733496828631,0.45749954,99271.0,99270.0,0.00190342]
[1733496829886,0.45649954,99271.0,99270.0,0.00190342]
[1733496830154,0.45749954,99271.0,99270.0,0.00190342]
[1733496830606,0.354468,99271.0,99270.0,0.00190342]
[1733496830816,0.352468,99271.0,99270.0,0.00190342]
[1733496831837,0.351468,99271.0,99270.0,0.00190342]
[1733496832655,0.201468,99271.0,99270.0,0.00190342]
[1733496833105,0.001,99271.0,99270.0,0.00190342]
[1733496833296,0.003,99271.0,99270.0,0.00190342]
[1733496833875,0.00787871,99273.0,99270.0,0.00190342]
[1733496834046,0.201457,99277.0,99270.0,0.00190342]
[1733496834047,0.30649754,99272.0,99270.0,0.00190342]
[1733496834287,0.351489,99261.0,99260.0,0.0017308]
[1733496836469,0.351489,99261.0,99260.0,0.0037308]
[1733496837044,0.35961871,99261.0,99260.0,0.0047308]
[1733496837581,0.00812971,99261.0,99260.0,0.0047308]
[1733496837782,0.20147,99270.0,99260.0,0.0017308]
[1733496838021,0.201462,99275.0,99260.0,0.0017308]
[1733496838205,0.201462,99275.0,99260.0,0.02505418]
[1733496838377,0.20953322,99275.0,99260.0,0.02505418]
[1733496838534,0.20953322,99275.0,99260.0,0.0047308]
[1733496838737,0.11310276,99275.0,99260.0,0.0047308]
[1733496838975,0.201482,99265.0,99260.0,0.0047308]
[1733496839202,0.402964,99265.0,99260.0,0.0047308]
[1733496839418,0.402964,99265.0,99260.0,0.0037308]
[1733496839761,0.201482,99265.0,99260.0,0.0017308]
[1733496840168,0.201453,99279.0,99260.0,0.0017308]
[1733496840564,0.251413,99299.0,99261.0,0.10132288]
[1733496840565,0.201471,99270.0,99261.0,0.10132288]
[1733496840785,0.202471,99270.0,99261.0,0.081]
[1733496841237,0.201456,99277.0,99261.0,0.081]
[1733496841928,0.201467,99272.0,99266.0,0.02034263]
[1733496842134,0.201467,99272.0,99267.0,0.01500808]
[1733496842551,0.201458,99276.0,99267.0,0.01500808]
[1733496842763,0.351484,99263.0,99260.0,0.0017308]
[1733496842968,0.374489,99261.0,99260.0,0.0017308]
[1733496843174,0.47952054,99261.0,99260.0,0.0017308]
[1733496843604,0.45652054,99261.0,99260.0,0.0017308]
[1733496844102,0.20503154,99261.0,99260.0,0.001]
[1733496844577,0.20503154,99261.0,99260.0,0.002]
[1733496844578,0.35652054,99261.0,99260.0,0.002]
[1733496844792,0.35652054,99261.0,99240.0,0.0017304]
[1733496844793,0.201509,99251.0,99240.0,0.0017304]
[1733496845006,0.30654054,99251.0,99240.0,0.0017304]
[1733496846102,0.45654054,99251.0,99240.0,0.0017304]
[1733496846733,0.46563761,99251.0,99240.0,0.0017304]
[1733496847409,0.46663761,99251.0,99240.0,0.0017304]
[1733496847621,0.351529,99241.0,99240.0,0.0017304]
[1733496847831,0.45656054,99241.0,99240.0,0.0017304]
[1733496848052,0.45656054,99241.0,99215.0,0.0483]
[1733496848053,0.50503154,99241.0,99215.0,0.0483]
[1733496848279,0.601549,99231.0,99197.0,0.0475]
[1733496848491,0.77958054,99231.0,99197.0,0.0475]
[1733496848707,0.86253859,99231.0,99197.0,0.0475]
[1733496848921,0.86253859,99231.0,99196.0,0.0762]
[1733496849133,0.82958054,99231.0,99230.0,0.00190499]
[1733496849805,0.82958054,99231.0,99196.0,0.0762]
[1733496849806,0.35159,99211.0,99196.0,0.0762]
[1733496850017,0.45662154,99211.0,99196.0,0.0762]
[1733496850244,0.45662154,99211.0,99190.0,0.0017302]
[1733496850462,0.70662154,99211.0,99190.0,0.0017302]
[1733496851164,0.49168124,99211.0,99190.0,0.0017302]
[1733496851614,0.49168124,99211.0,99192.0,0.02059902]
[1733496851819,0.49984464,99211.0,99192.0,0.02059902]
[1733496852077,0.24984464,99211.0,99190.0,0.2033622]
[1733496852299,0.0081634,99211.0,99190.0,0.2033622]
[1733496852494,0.0091634,99211.0,99190.0,0.2033622]
[1733496852727,0.001,99211.0,99195.0,0.22139308]
[1733496853200,0.201583,99215.0,99195.0,0.22139308]
[1733496853504,0.201586,99213.0,99195.0,0.22139308]
[1733496853708,0.15,99214.0,99195.0,0.22139308]
[1733496853996,0.001,99211.0,99210.0,0.0027286]
[1733496854241,0.001,99211.0,99210.0,0.0838286]
[1733496854506,0.15,99224.0,99210.0,0.0828286]
[1733496854989,0.15,99222.0,99210.0,0.0828286]
[1733496854991,0.15,99220.0,99210.0,0.0828286]
[1733496855437,0.0081666,99224.0,99211.0,0.0483]
[1733496855868,0.17462684,99240.0,99211.0,0.28662506]
[1733496856093,0.0079416,99233.0,99212.0,0.10603946]
[1733496856299,0.00017233,99240.0,99212.0,0.10603946]
[1733496856300,0.00017233,99240.0,99212.0,0.30661754]
[1733496856748,0.00017233,99240.0,99219.0,0.201573]
[1733496856968,0.201533,99239.0,99219.0,0.201573]
[1733496857182,0.17462684,99230.0,99211.0,0.0483]
[1733496857421,0.00117233,99240.0,99219.0,0.02034121]
[1733496857633,0.201533,99239.0,99219.0,0.05313797]
[1733496857869,0.15,99237.0,99219.0,0.02034121]
[1733496858086,0.15,99235.0,99219.0,0.02034121]
[1733496858308,0.201555,99229.0,99219.0,0.02034121]
[1733496858518,0.201555,99229.0,99211.0,0.0483]
[1733496858801,0.201581,99216.0,99211.0,0.02019401]
[1733496859024,0.15,99213.0,99210.0,0.0017286]
[1733496859262,0.15,99211.0,99210.0,0.0017286]
[1733496859517,0.25503154,99211.0,99210.0,0.0017286]
[1733496859950,0.23503154,99211.0,99210.0,0.0017286]
[1733496860175,0.23503154,99211.0,99210.0,0.0027286]
[1733496860612,0.23503154,99211.0,99210.0,0.0017286]
[1733496860832,0.23603154,99211.0,99210.0,0.0017286]
[1733496861034,0.23503154,99211.0,99210.0,0.0017286]
[1733496861665,0.23489154,99211.0,99210.0,0.0017286]
[1733496862087,0.24274525,99211.0,99210.0,0.0017286]
[1733496862306,0.00785371,99211.0,99210.0,0.0017286]
[1733496862744,0.0008677,99220.0,99210.0,0.0017286]
[1733496863164,0.201574,99219.0,99210.0,0.0017286]
[1733496863422,0.0088631,99220.0,99210.0,0.0027286]
[1733496863881,0.0008677,99220.0,99216.0,0.201579]
[1733496864109,0.0008677,99220.0,99210.0,0.02768854]
[1733496864339,0.0018677,99220.0,99210.0,0.0037286]
[1733496864546,0.201574,99219.0,99210.0,0.0037286]
[1733496864751,0.201576,99218.0,99210.0,0.0037286]
[1733496864975,0.28152608,99220.0,99210.0,0.0037286]
[1733496865224,0.201574,99219.0,99210.0,0.0037286]
[1733496865440,0.201574,99219.0,99210.0,0.0017286]
[1733496865865,0.201585,99214.0,99210.0,0.0017286]
[1733496866308,0.201576,99218.0,99210.0,0.0017286]
[1733496866597,0.15,99219.0,99210.0,0.0017286]
[1733496866809,0.152,99219.0,99210.0,0.0017286]
[1733496867283,0.403173,99213.0,99210.0,0.0017286]
[1733496867502,0.201578,99217.0,99210.0,0.0017286]
[1733496867734,0.15,99217.0,99210.0,0.0017286]
[1733496868219,0.10703154,99218.0,99210.0,0.0017286]
[1733496868220,0.002,99218.0,99210.0,0.0017286]
[1733496868716,0.0008677,99220.0,99210.0,0.02354615]
[1733496868954,0.001,99219.0,99210.0,0.02454615]
[1733496869173,0.001,99219.0,99210.0,0.0027286]
[1733496869434,0.0008677,99220.0,99211.0,0.20159]
[1733496869675,0.0008677,99220.0,99210.0,0.0037286]
[1733496869903,0.0008677,99220.0,99210.0,0.0017286]
[1733496870169,0.0008677,99220.0,99210.0,0.0037286]
[1733496870456,0.0008677,99220.0,99210.0,0.0027286]
[1733496870954,0.10503154,99219.0,99210.0,0.0027286]
[1733496871217,0.201586,99214.0,99210.0,0.0027286]
[1733496871458,0.403172,99214.0,99210.0,0.0017286]
[1733496871702,0.201588,99212.0,99210.0,0.0017286]
[1733496871927,0.351588,99212.0,99211.0,0.001]
[1733496872154,0.351588,99212.0,99210.0,0.0017286]
[1733496872155,0.45661954,99212.0,99210.0,0.0017286]
[1733496872381,0.25503154,99211.0,99210.0,0.0017286]
[1733496872610,0.25503154,99211.0,99210.0,0.0047286]
[1733496872864,0.15,99211.0,99210.0,0.0037286]
[1733496873101,0.00912074,99212.0,99210.0,0.0037286]
[1733496873337,0.00812074,99212.0,99210.0,0.0017286]
[1733496873585,0.0008677,99220.0,99210.0,0.0017286]
[1733496873822,0.0008677,99220.0,99210.0,0.0027286]
[1733496874065,0.00906449,99220.0,99210.0,0.0027286]
[1733496874355,0.0008677,99220.0,99210.0,0.0027286]
[1733496874825,0.0008677,99220.0,99211.0,0.0200863]
[1733496876250,0.0008677,99220.0,99218.0,0.0817]
[1733496876495,0.0008677,99220.0,99219.0,0.30660554]
[1733496877434,0.0008672,99270.0,99220.0,0.1249]
[1733496877706,0.0008672,99270.0,99269.0,0.1249]
[1733496878248,1.50104023,99270.0,99269.0,0.14890725]
[1733496878479,1.50104023,99270.0,99269.0,0.1479]
[1733496878480,0.00017303,99270.0,99269.0,0.1479]
[1733496878747,0.00801539,99303.0,99279.0,0.224452]
[1733496878979,0.00801539,99303.0,99279.0,0.30648354]
[1733496879249,0.000867,99310.0,99279.0,0.35727759]
[1733496879522,1.5,99302.0,99279.0,0.42567759]
[1733496879746,0.000867,99310.0,99290.0,0.17462684]
[1733496879977,0.00144366,99310.0,99292.0,0.201426]
[1733496880189,0.00144366,99310.0,99283.0,0.05]
[1733496880190,0.00144366,99310.0,99293.0,0.04640692]
[1733496880399,0.00144366,99310.0,99293.0,0.0454]
[1733496881036,0.00244366,99310.0,99293.0,0.0454]
[1733496881244,0.00244366,99310.0,99294.0,0.00544]
[1733496881453,0.00244366,99310.0,99309.0,0.01971813]
[1733496881696,0.00244366,99310.0,99294.0,0.00544]
[1733496881697,1.50244366,99310.0,99300.0,0.270132]
[1733496881917,0.00244366,99310.0,99301.0,0.10603845]
[1733496882165,0.00244366,99310.0,99304.0,0.402802]
[1733496882376,0.00244366,99310.0,99306.0,0.201397]
[1733496882597,0.0008664,99320.0,99303.0,0.0771]
[1733496882598,0.0008664,99320.0,99319.0,0.251371]
[1733496882813,0.00103933,99320.0,99319.0,0.50873964]
[1733496883020,1.50103933,99320.0,99319.0,0.50873964]
[1733496883231,0.0008659,99370.0,99335.0,0.201338]
[1733496883458,0.10589744,99370.0,99336.0,0.10603811]
[1733496883681,0.10589744,99370.0,99337.0,0.01560381]
[1733496883682,0.040299,99368.0,99337.0,0.01560381]
[1733496883899,0.011159,99370.0,99358.0,0.22109527]
[1733496883900,0.0010388,99370.0,99358.0,0.22109527]
[1733496884106,0.0010388,99370.0,99358.0,0.01980327]
[1733496884317,1.5,99360.0,99358.0,0.01980327]
[1733496884537,1.5,99360.0,99359.0,0.21638033]
[1733496884759,0.0010388,99370.0,99359.0,0.01509033]
[1733496884976,0.0010388,99370.0,99360.0,0.00100634]
[1733496885183,0.0010388,99370.0,99361.0,0.201286]
[1733496885399,0.0010388,99370.0,99363.0,0.201282]
[1733496885616,0.0010388,99370.0,99364.0,0.16870765]
[1733496885893,0.0010388,99370.0,99365.0,0.201278]
[1733496886113,0.0008659,99380.0,99369.0,0.05]
[1733496886333,0.0008659,99380.0,99370.0,0.10603771]
[1733496886557,0.0008659,99380.0,99371.0,0.03574886]
[1733496886770,0.0008659,99380.0,99372.0,0.10503154]
[1733496886980,0.0008659,99380.0,99365.0,0.0001729]
[1733496887470,1.5,99366.0,99365.0,0.0001729]
[1733496889050,1.5,99366.0,99365.0,0.0021729]
[1733496889277,1.5,99366.0,99365.0,0.10720444]
[1733496889507,1.5,99366.0,99365.0,0.15826314]
[1733496889766,1.5,99366.0,99365.0,0.10520444]
[1733496889971,1.5,99366.0,99365.0,0.10820444]
[1733496890178,1.5,99366.0,99365.0,0.0031729]
[1733496890591,1.65,99366.0,99365.0,0.0071729]
[1733496890804,1.65,99366.0,99365.0,0.0031729]
[1733496891254,1.65,99366.0,99365.0,0.0091729]
[1733496891460,1.65,99366.0,99365.0,0.0001729]
[1733496891667,1.65,99366.0,99365.0,0.0021729]
[1733496892309,1.65,99366.0,99365.0,0.0001729]
[1733496892713,1.65,99366.0,99365.0,0.0051729]
[1733496892925,1.65,99366.0,99365.0,0.0001729]
[1733496893291,0.001,99366.0,99365.0,0.0001729]
[1733496895545,1.501,99366.0,99365.0,0.0011729]
[1733496895752,1.5,99366.0,99365.0,0.0011729]
[1733496895958,1.5,99366.0,99365.0,0.0001729]
[1733496896163,1.5,99366.0,99365.0,0.0021729]
[1733496896368,1.5,99366.0,99365.0,0.0001729]
[1733496896697,1.501,99366.0,99365.0,0.0001729]
[1733496897282,1.5,99366.0,99365.0,0.0001729]
[1733496897540,1.501,99366.0,99365.0,0.0001729]
[1733496898916,1.76526206,99366.0,99365.0,0.0001729]
[1733496899463,0.351278,99365.0,99360.0,0.0017326]
[1733496899674,0.15,99365.0,99360.0,0.0017326]
[1733496900072,0.15,99363.0,99360.0,0.0017326]
[1733496900465,0.01040329,99366.0,99360.0,0.0017326]
[1733496900466,0.00117277,99366.0,99360.0,0.0017326]
[1733496900665,0.00117277,99366.0,99361.0,0.18263784]
[1733496900865,0.00117277,99366.0,99362.0,0.03856674]
[1733496901078,0.00117277,99366.0,99363.0,0.10603776]
[1733496901529,0.00117277,99366.0,99362.0,0.03856674]
[1733496901742,0.00117277,99366.0,99364.0,0.0010062]
[1733496901945,0.00117277,99366.0,99362.0,0.00100629]
[1733496902150,0.001,99365.0,99362.0,0.10503154]
[1733496902369,0.001,99365.0,99361.0,0.0766]
[1733496902370,0.001,99365.0,99363.0,0.10603783]
[1733496902581,0.2709979,99380.0,99363.0,0.11003783]
[1733496902789,0.2709979,99380.0,99363.0,0.1102106]
[1733496903420,0.15,99379.0,99363.0,0.00417277]
[1733496903628,0.201263,99373.0,99363.0,0.00417277]
[1733496903839,0.40255,99367.0,99363.0,0.00017277]
[1733496904046,0.201278,99365.0,99363.0,0.00217277]
[1733496904874,0.201278,99365.0,99364.0,0.02046709]
[1733496905507,0.00995502,99365.0,99364.0,0.02046709]
[1733496905728,0.15,99368.0,99364.0,0.02046709]
[1733496905948,0.15,99366.0,99364.0,0.02046709]
[1733496906151,0.223,99364.0,99363.0,0.00017277]
[1733496906383,0.6336,99361.0,99360.0,3.7e-07]
[1733496906602,1.03662646,99361.0,99360.0,3.7e-07]
[1733496907033,0.93173154,99361.0,99360.0,3.7e-07]
[1733496907383,0.201357,99326.0,99321.0,0.02004648]
[1733496907595,0.08706249,99325.0,99321.0,0.02004648]
[1733496907828,0.201352,99329.0,99321.0,0.02004648]
[1733496907990,0.201362,99324.0,99321.0,0.02004648]
[1733496908190,0.201362,99324.0,99302.0,0.0499]
[1733496908389,0.270132,99312.0,99302.0,0.0499]
[1733496908852,0.270132,99312.0,99286.0,0.0787]
[1733496908997,0.201379,99316.0,99287.0,0.10503154]
[1733496908998,0.270132,99302.0,99287.0,0.10503154]
[1733496909205,0.201379,99316.0,99292.0,0.00057666]
[1733496909206,0.270132,99300.0,99292.0,0.00057666]
[1733496909401,0.270132,99300.0,99299.0,0.01996397]
[1733496909906,0.201347,99331.0,99299.0,0.01996397]
[1733496909907,0.270132,99330.0,99303.0,0.201403]
[1733496910228,0.270132,99320.0,99304.0,0.10603837]
[1733496910430,0.270132,99320.0,99304.0,0.10503154]
[1733496911260,0.270132,99320.0,99319.0,0.02041074]
[1733496911669,0.28024407,99320.0,99319.0,0.02041074]
[1733496912212,0.01011207,99320.0,99319.0,0.02041074]
[1733496912403,0.270132,99329.0,99319.0,0.02041074]
[1733496912559,0.270132,99329.0,99327.0,0.201355]
[1733496912784,0.270132,99329.0,99321.0,0.201365]
[1733496912988,1.770132,99329.0,99326.0,0.201355]
[1733496913358,1.770132,99329.0,99319.0,0.02141074]
[1733496913690,1.770132,99329.0,99320.0,0.201369]
[1733496913892,1.770132,99329.0,99319.0,0.02158367]
[1733496914139,1.770132,99329.0,99319.0,0.02007851]
[1733496914140,1.78006327,99329.0,99319.0,0.02007851]
[1733496914339,1.50993127,99329.0,99319.0,0.01907851]
[1733496914518,0.201353,99328.0,99319.0,0.01907851]
[1733496915080,0.201363,99323.0,99319.0,0.01907851]
[1733496915284,0.28006327,99329.0,99319.0,0.01907851]
[1733496915492,0.201311,99349.0,99319.0,0.01907851]
[1733496915493,0.270132,99360.0,99321.0,0.201367]
[1733496915719,0.270132,99360.0,99334.0,0.05]
[1733496915933,0.270132,99360.0,99344.0,0.20132]
[1733496916143,0.1751425,99360.0,99335.0,0.10503154]
[1733496916376,0.1751425,99360.0,99346.0,0.201316]
[1733496916579,2.0,99365.0,99347.0,0.10503154]
[1733496916782,2.0,99365.0,99354.0,0.201299]
[1733496916999,2.0,99365.0,99349.0,0.20131]
[1733496917000,0.002,99360.0,99349.0,0.20131]
[1733496917225,0.1771425,99360.0,99349.0,0.20131]
[1733496917433,0.1771425,99360.0,99359.0,0.01968035]
[1733496918093,0.002,99360.0,99359.0,0.01968035]
[1733496918297,0.00017277,99360.0,99359.0,0.01968035]
[1733496918930,0.00017277,99360.0,99359.0,0.03433839]
[1733496919134,0.00017277,99360.0,99359.0,0.03733839]
[1733496919350,0.00017277,99360.0,99359.0,0.02268035]
[1733496919567,2.0,99365.0,99359.0,0.02268035]
[1733496919568,1.93956376,99365.0,99359.0,0.12871826]
[1733496919783,1.93956376,99365.0,99360.0,0.50861383]
[1733496919784,1.69397169,99365.0,99360.0,0.50861383]
[1733496919998,1.69397169,99365.0,99362.0,0.201284]
[1733496920241,1.69397169,99365.0,99364.0,0.20128]
[1733496920449,1.69397169,99365.0,99364.0,0.30631154]
[1733496921085,1.55476013,99365.0,99364.0,0.30631154]
[1733496921297,1.43926831,99365.0,99364.0,0.61559456]
[1733496921536,1.31244127,99365.0,99364.0,0.65156741]
[1733496921741,0.25692809,99365.0,99364.0,0.65156741]
[1733496921949,0.0008663,99370.0,99369.0,0.47427]
[1733496922161,0.0008663,99370.0,99369.0,0.61558456]
[1733496922362,0.0008659,99380.0,99379.0,0.1]
[1733496922559,0.0008659,99380.0,99379.0,0.42928054]
[1733496922781,0.0008659,99380.0,99379.0,0.46556356]
[1733496922989,0.0008659,99380.0,99379.0,0.57928054]
[1733496923193,0.0008659,99380.0,99379.0,0.61556356]
[1733496923398,0.0008659,99380.0,99379.0,0.64619831]
[1733496923884,0.0008659,99380.0,99379.0,0.53691529]
[1733496924509,0.0008659,99380.0,99379.0,0.54591529]
[1733496924720,0.0008659,99380.0,99379.0,0.62544245]
[1733496924927,0.0008659,99380.0,99379.0,0.60744245]
[1733496925141,0.0008659,99380.0,99379.0,0.61644245]
[1733496925372,0.0008659,99380.0,99379.0,0.62544245]
[1733496925587,0.0008659,99380.0,99379.0,0.61644245]
[1733496926012,0.0008659,99380.0,99379.0,0.5948077]
[1733496926217,0.0008659,99380.0,99379.0,0.5358077]
[1733496926437,0.0008659,99380.0,99379.0,0.3858077]
[1733496926851,0.0008659,99380.0,99379.0,0.3948077]
[1733496927283,0.0008659,99380.0,99379.0,0.3858077]
[1733496927502,0.0008659,99380.0,99379.0,0.44951377]
[1733496927750,0.000866,99410.0,99381.0,0.05]
[1733496927751,0.00056616,99410.0,99381.0,0.05]
[1733496927966,0.00056616,99410.0,99395.0,0.201215]
[1733496928185,0.00056616,99410.0,99399.0,0.201208]
[1733496928391,0.00056616,99410.0,99382.0,0.10503154]
[1733496928392,0.00056616,99410.0,99397.0,0.201213]
[1733496928598,0.01037062,99410.0,99394.0,0.201219]
[1733496928810,0.01037062,99410.0,99394.0,0.30625054]
[1733496929020,0.00056616,99410.0,99394.0,0.30625054]
[1733496929263,0.00114261,99410.0,99399.0,0.201209]
[1733496929466,0.00114261,99410.0,99399.0,0.201207]
[1733496929677,0.00114261,99410.0,99399.0,0.03122405]
[1733496929888,1.5,99400.0,99398.0,0.201211]
[1733496930097,0.00114261,99410.0,99398.0,0.201211]
[1733496930330,0.00114261,99410.0,99399.0,0.201209]
[1733496930534,0.00114261,99410.0,99405.0,0.201196]
[1733496930741,0.00114261,99410.0,99399.0,0.003]
[1733496930742,1.50114261,99410.0,99399.0,0.003]
[1733496930947,1.50114261,99410.0,99406.0,0.201194]
[1733496931151,0.00114261,99410.0,99407.0,0.10503154]
[1733496931369,0.00114261,99410.0,99408.0,0.20219684]
[1733496931610,0.0008657,99440.0,99408.0,0.20219684]
[1733496931611,0.00995515,99438.0,99421.0,0.05]
[1733496931820,0.00017285,99438.0,99437.0,0.201132]
[1733496932027,0.00017285,99438.0,99429.0,0.201146]
[1733496932227,0.00017285,99438.0,99437.0,0.003864]
[1733496932430,0.00017285,99438.0,99432.0,0.20114]
[1733496932640,0.00017285,99438.0,99437.0,0.00386342]
[1733496932860,0.00017285,99438.0,99422.0,0.11503154]
[1733496933100,0.00017285,99438.0,99437.0,0.00386313]
[1733496933286,0.00017285,99438.0,99423.0,0.03549231]
[1733496933494,0.00017285,99438.0,99424.0,0.10503154]
[1733496933707,0.00017285,99438.0,99425.0,0.00387042]
[1733496933923,0.00017285,99438.0,99437.0,0.001]
[1733496934331,0.00017285,99438.0,99437.0,0.00586311]
[1733496934538,0.00017285,99438.0,99437.0,0.002]
[1733496934745,0.01015189,99438.0,99424.0,0.001]
[1733496934958,0.21128289,99438.0,99425.0,0.002]
[1733496935162,0.21128289,99438.0,99426.0,0.0128394]
[1733496935409,0.21128289,99438.0,99426.0,0.01670921]
[1733496935597,0.2715,99435.0,99426.0,0.00386981]
[1733496935816,0.15,99433.0,99424.0,0.001]
[1733496936017,0.351156,99425.0,99424.0,0.001]
[1733496936230,0.45618754,99425.0,99424.0,0.001]
[1733496936476,0.26998475,99410.0,99390.0,0.02025182]
[1733496936766,0.26998475,99410.0,99348.0,0.08790593]
[1733496936767,0.15,99394.0,99351.0,0.0801]
[1733496937005,0.15,99394.0,99351.0,0.10503154]
[1733496937006,0.201286,99361.0,99351.0,0.10503154]
[1733496937274,0.201286,99361.0,99343.0,0.05]